bitfinex-derivatives/quotes_SOLF0:USTF0_20250603
["timestamp","ask_amount","ask_price","bid_price","bid_amount"]
[1748910691834,43.6081,157.95,157.89,0.04575856]
[1748910692029,37.28,157.95,157.89,0.04575856]
[1748910692330,37.28,157.95,157.92,6.329]
[1748910692529,0.0399284,157.94,157.92,6.329]
[1748910693034,0.0399284,157.94,157.91,6.3293]
[1748910693327,0.0399284,157.94,157.89,0.04575856]
[1748910693627,0.0399284,157.94,157.9,6.33]
[1748910694323,0.0399284,157.94,157.89,6.37615856]
[1748910694635,0.0399284,157.94,157.89,0.04575856]
[1748910694825,0.0399284,157.94,157.9,6.3297]
[1748910695022,0.0399284,157.94,157.89,0.04575856]
[1748910695625,6.3295,157.92,157.89,0.04575856]
[1748910696129,6.3301,157.9,157.89,0.04575856]
[1748910699834,11.58823407,157.9,157.89,0.04575856]
[1748910700627,6.3301,157.9,157.89,0.04575856]
[1748910701237,11.58635507,157.9,157.89,0.04575856]
[1748910701635,11.58691276,157.9,157.89,0.04575856]
[1748910705135,11.5925186,157.9,157.89,0.04575856]
[1748910705633,137.1301,157.9,157.89,0.04575856]
[1748910705939,153.30908285,157.9,157.89,0.04575856]
[1748910707134,6.3316,157.86,157.85,24.54664091]
[1748910707530,11.59612987,157.86,157.85,24.54664091]
[1748910708841,5.26452987,157.86,157.85,24.54664091]
[1748910709133,37.32715779,157.87,157.85,24.54664091]
[1748910709738,6.3316,157.86,157.85,24.54664091]
[1748910709939,37.32715779,157.87,157.85,24.54664091]
[1748910710136,43.65865779,157.87,157.85,24.54664091]
[1748910710938,37.32715779,157.87,157.85,24.54664091]
[1748910713039,43.65855779,157.87,157.85,24.54664091]
[1748910713636,37.32715779,157.87,157.85,24.54664091]
[1748910714337,11.6077487,157.86,157.85,24.54664091]
[1748910715239,5.2761487,157.86,157.85,24.54664091]
[1748910715432,16.19517248,157.86,157.85,24.54664091]
[1748910715733,5.27928925,157.86,157.85,24.54664091]
[1748910716941,11.61088925,157.86,157.85,24.54664091]
[1748910717435,16.90089313,157.86,157.85,24.54664091]
[1748910717829,10.56929313,157.86,157.85,24.54664091]
[1748910718030,5.29000388,157.86,157.85,24.54664091]
[1748910718442,11.62160388,157.86,157.85,24.54664091]
[1748910719445,11.62660329,157.86,157.85,24.54664091]
[1748910720844,5.29725598,157.86,157.85,24.54664091]
[1748910721239,19.01500073,157.86,157.85,24.54664091]
[1748910721949,19.01500073,157.86,157.85,14.99094091]
[1748910722740,11.62885598,157.86,157.85,14.99094091]
[1748910722944,5.29725598,157.86,157.85,14.99094091]
[1748910723147,1.94025598,157.86,157.85,14.99094091]
[1748910723848,0.04715779,157.87,157.85,14.99094091]
[1748910724046,36.46,157.9,157.85,14.99094091]
[1748910724751,5.90283404,157.92,157.87,7.38614475]
[1748910724953,0.04357945,157.91,157.88,0.04825626]
[1748910725445,13.27068727,157.94,157.88,0.04825626]
[1748910726046,6.3289,157.93,157.9,6.3298]
[1748910726246,5.88454252,157.94,157.88,0.04825626]
[1748910726456,0.04843869,157.93,157.89,7.38614475]
[1748910726643,0.04843869,157.93,157.88,0.04825626]
[1748910727450,0.04843869,157.93,157.88,6.37895626]
[1748910727643,0.04843869,157.93,157.88,0.04825626]
[1748910727853,10.92900346,157.92,157.88,0.04825626]
[1748910728042,47.38900346,157.92,157.88,0.04825626]
[1748910728543,6.3304,157.89,157.88,0.04825626]
[1748910728761,47.38900346,157.92,157.88,0.04825626]
[1748910729151,6.3302,157.9,157.88,0.04825626]
[1748910729348,36.46,157.92,157.88,0.04825626]
[1748910729551,0.04843869,157.93,157.92,6.3292]
[1748910730746,0.04843869,157.93,157.91,6.3296]
[1748910731050,0.04843869,157.93,157.89,2.2214]
[1748910731549,0.04843869,157.93,157.9,6.3298]
[1748910732455,0.04843869,157.93,157.89,8.5518]
[1748910732653,0.04843869,157.93,157.89,2.2214]
[1748910733053,0.04843869,157.93,157.92,6.3292]
[1748910734054,0.04843869,157.93,157.91,6.3295]
[1748910734356,0.04843869,157.93,157.89,2.2214]
[1748910734564,6.37753869,157.93,157.9,6.3297]
[1748910734758,0.04843869,157.93,157.89,2.2214]
[1748910735259,0.04843869,157.93,157.91,6.3295]
[1748910735456,0.04843869,157.93,157.89,2.2214]
[1748910736362,5.25114717,157.95,157.9,10.92900346]
[1748910736557,5.25114717,157.95,157.92,10.92900346]
[1748910736762,11.78121943,157.96,157.92,10.92900346]
[1748910737564,11.78121943,157.96,157.95,6.328]
[1748910738059,11.78121943,157.96,157.94,6.3283]
[1748910739556,11.78121943,157.96,157.93,6.3288]
[1748910740955,18.10901943,157.96,157.93,6.3288]
[1748910741363,11.78121943,157.96,157.94,6.3284]
[1748910741766,11.78121943,157.96,157.92,0.0403894]
[1748910742065,11.78121943,157.96,157.92,2.1979894]
[1748910742568,11.78121943,157.96,157.95,6.328]
[1748910743662,36.66,158.03,157.95,10.92900346]
[1748910743865,36.66,158.03,157.97,10.97259147]
[1748910744166,175.23092467,158.06,158.0,6.3257]
[1748910744371,175.23092467,158.06,158.01,0.04110893]
[1748910744372,6.3249,158.03,158.01,0.04110893]
[1748910744575,167.36,158.06,158.01,0.04110893]
[1748910745366,178.20900346,158.06,158.01,0.04110893]
[1748910745563,6.3251,158.03,158.01,0.04110893]
[1748910745768,178.20900346,158.06,158.01,0.04110893]
[1748910746071,6.3252,158.02,158.01,0.04110893]
[1748910746962,6.325,158.03,158.01,0.04110893]
[1748910749171,36.66,158.06,158.02,7.36729034]
[1748910749569,36.66,158.06,158.01,0.04110893]
[1748910749765,7.36729034,158.05,158.01,0.04110893]
[1748910750869,36.66,158.06,158.01,0.04110893]
[1748910751170,546.8,158.08,158.02,7.36729034]
[1748910751359,546.8,158.08,158.05,6.3237]
[1748910751672,36.66,158.1,158.05,6.36574445]
[1748910751875,6.3236,158.06,158.05,0.04204445]
[1748910753067,6.3232,158.08,158.05,0.04204445]
[1748910753273,11.58399034,158.11,158.05,0.04204445]
[1748910753469,36.66,158.1,158.05,0.04204445]
[1748910754368,36.66,158.1,158.05,7.40933479]
[1748910754974,36.66,158.1,158.07,6.323]
[1748910755175,36.66,158.1,158.05,0.04204445]
[1748910755871,6.3225,158.09,158.06,6.3234]
[1748910756075,36.66,158.1,158.06,6.3234]
[1748910756276,36.66,158.1,158.05,0.04204445]
[1748910757471,2.069,158.14,158.06,7.36729034]
[1748910757681,253.4455656,158.15,158.08,7.41221846]
[1748910757869,36.64,158.15,158.1,7.36729034]
[1748910758480,42.9603,158.15,158.12,6.321]
[1748910758673,42.9603,158.15,158.12,6.36839692]
[1748910759471,42.9603,158.15,158.12,0.04739692]
[1748910759672,36.64,158.15,158.12,0.04739692]
[1748910760279,6.3207,158.14,158.12,0.04739692]
[1748910760983,42.9602,158.15,158.12,0.04739692]
[1748910761681,6.3206,158.14,158.12,0.04739692]
[1748910761871,36.64,158.15,158.12,0.04739692]
[1748910762181,7.36729034,158.14,158.04,43.1494]
[1748910762382,7.36729034,158.1,158.04,6.5094]
[1748910762584,7.36729034,158.1,158.04,2.2076]
[1748910762896,36.64,158.11,158.01,583.14]
[1748910762897,6.3234,158.07,158.01,583.14]
[1748910763074,0.04739942,158.06,158.03,6.3245]
[1748910763279,7.41468976,158.06,158.02,0.04652629]
[1748910763475,6.3243,158.05,158.02,0.04652629]
[1748910763981,13.73838976,158.06,158.02,0.04652629]
[1748910764177,6.37109942,158.06,158.02,0.04652629]
[1748910764686,6.37109942,158.06,158.02,6.37142629]
[1748910764881,6.3241,158.05,158.02,6.37142629]
[1748910765283,0.04739942,158.06,158.03,6.3247]
[1748910765484,6.37109942,158.06,158.03,6.3247]
[1748910766378,0.04739942,158.06,158.02,0.04652629]
[1748910766981,0.04739942,158.06,158.05,6.324]
[1748910767187,0.04739942,158.06,158.02,0.04652629]
[1748910767886,36.68739942,158.06,158.02,0.04652629]
[1748910768283,0.04739942,158.06,158.02,0.04652629]
[1748910768485,9.942e-05,158.06,158.05,10.91361528]
[1748910768788,9.942e-05,158.06,158.05,17.23761528]
[1748910769286,9.942e-05,158.06,158.05,6.324]
[1748910770080,9.942e-05,158.06,158.05,17.23761528]
[1748910774881,9.942e-05,158.06,158.05,6.324]
[1748910778289,9.942e-05,158.06,158.03,15.14771528]
[1748910778290,9.942e-05,158.06,158.04,6.3242]
[1748910779596,9.942e-05,158.06,158.03,6.3247]
[1748910779996,9.942e-05,158.06,158.02,0.04652629]
[1748910780896,6.32399942,158.06,158.02,0.04652629]
[1748910781092,9.942e-05,158.06,158.02,0.04652629]
[1748910781896,9.942e-05,158.06,158.02,10.96014157]
[1748910782199,9.942e-05,158.06,158.04,10.91361528]
[1748910782393,9.942e-05,158.06,158.05,6.324]
[1748910783093,5.15225561,158.12,158.11,6.3216]
[1748910783792,36.46,158.17,158.09,10.91361528]
[1748910783997,36.46,158.17,158.11,10.95412057]
[1748910784292,5.14771714,158.18,158.11,10.95412057]
[1748910784899,5.14807268,158.18,158.11,0.04050529]
[1748910785295,36.46,158.19,158.17,6.3192]
[1748910785489,41.60149976,158.19,158.17,6.3192]
[1748910785699,36.46,158.19,158.17,6.3192]
[1748910786392,2.0804,158.2,158.16,0.03983035]
[1748910786898,36.46,158.22,158.16,0.03983035]
[1748910787198,5.14150978,158.23,158.17,10.91361528]
[1748910787400,36.46,158.25,158.19,10.91361528]
[1748910787596,5.13720486,158.25,158.19,10.91361528]
[1748910787797,2.1231,158.27,158.19,10.91361528]
[1748910787995,2.1231,158.27,158.21,6.36271906]
[1748910788197,36.46,158.28,158.21,10.95953434]
[1748910788399,2.0808,158.3,158.23,10.91361528]
[1748910788596,2.0808,158.3,158.25,0.04155559]
[1748910789095,5.13311701,158.29,158.25,0.04155559]
[1748910789290,7.21391701,158.3,158.25,0.04155559]
[1748910789702,6.3146,158.27,158.25,0.04155559]
[1748910789898,5.13311701,158.29,158.25,0.04155559]
[1748910790098,18.12753229,158.3,158.25,0.04155559]
[1748910790303,6.3145,158.28,158.25,0.04155559]
[1748910790504,18.12753229,158.3,158.25,0.04155559]
[1748910790698,6.3148,158.27,158.25,0.04155559]
[1748910790904,18.12753229,158.3,158.25,0.04155559]
[1748910791104,5.13311701,158.3,158.25,0.04155559]
[1748910791300,5.10594569,158.31,158.25,0.04155559]
[1748910791506,36.44,158.34,158.26,10.91361528]
[1748910791699,41.5463392,158.34,158.28,0.04798162]
[1748910791898,6.3127,158.32,158.28,0.04798162]
[1748910792098,41.5463392,158.34,158.28,0.04798162]
[1748910792499,6.3124,158.33,158.28,6.36208162]
[1748910792806,36.44,158.34,158.28,0.04798162]
[1748910793103,2.2197,158.35,158.28,0.04798162]
[1748910793303,4.2283,158.38,158.3,10.91361528]
[1748910793499,5.09728129,158.39,158.32,10.95358033]
[1748910793699,5.09728129,158.39,158.32,0.03996505]
[1748910794102,582.4,158.4,158.32,0.03996505]
[1748910794401,582.4,158.4,158.32,6.35236505]
[1748910794606,582.4,158.4,158.32,0.03996505]
[1748910795007,6.311,158.36,158.32,0.03996505]
[1748910795205,582.4,158.4,158.32,0.03996505]
[1748910795405,10.91361528,158.39,158.32,0.03996505]
[1748910795809,582.4,158.4,158.32,0.03996505]
[1748910796102,10.91361528,158.37,158.32,0.03996505]
[1748910796809,6.3107,158.37,158.32,0.03996505]
[1748910797507,10.91361528,158.39,158.32,0.03996505]
[1748910798001,6.3106,158.37,158.32,0.03996505]
[1748910798410,10.91361528,158.39,158.32,0.03996505]
[1748910798613,6.3115,158.35,158.32,0.03996505]
[1748910798909,2.2058,158.38,158.32,0.03996505]
[1748910799107,6.3107,158.37,158.32,6.35226505]
[1748910799406,582.4,158.4,158.32,47.37358033]
[1748910799805,36.44,158.4,158.32,47.37358033]
[1748910800006,36.44,158.4,158.35,6.3112]
[1748910800203,36.44,158.4,158.36,0.04732676]
[1748910800417,2.0598,158.41,158.36,0.04732676]
[1748910801110,6.3102,158.38,158.36,0.04732676]
[1748910801702,2.0598,158.41,158.36,0.04732676]
[1748910802708,6.31,158.39,158.36,0.04732676]
[1748910803019,2.0598,158.41,158.36,0.04732676]
[1748910803207,8.3692,158.41,158.36,6.35832676]
[1748910803605,2.0598,158.41,158.36,6.35832676]
[1748910804212,36.04,158.42,158.36,0.04732676]
[1748910804610,46.95361528,158.42,158.36,0.04732676]
[1748910804806,6.3101,158.39,158.36,0.04732676]
[1748910805506,10.91361528,158.37,158.26,46.95361528]
[1748910805715,10.91361528,158.37,158.28,10.91361528]
[1748910806012,17.22451528,158.37,158.32,6.3123]
[1748910806211,10.91361528,158.37,158.32,6.3123]
[1748910806417,0.04830264,158.36,158.33,0.0454619]
[1748910806605,6.35930264,158.36,158.33,0.0454619]
[1748910806810,0.04830264,158.36,158.33,0.0454619]
[1748910808809,10.91361528,158.35,158.33,0.0454619]
[1748910809204,10.96191792,158.36,158.33,0.0454619]
[1748910809914,6.3115,158.35,158.33,0.0454619]
[1748910810124,10.96191792,158.36,158.33,0.0454619]
[1748910810418,10.91361528,158.34,158.33,0.0454619]
[1748910810714,53.24541528,158.34,158.33,0.0454619]
[1748910811020,46.93361528,158.34,158.23,36.02]
[1748910811212,46.93361528,158.34,158.21,36.02]
[1748910811213,10.91361528,158.31,158.21,36.02]
[1748910811724,46.93361528,158.3,158.22,10.91361528]
[1748910811919,0.04562703,158.28,158.24,0.04201572]
[1748910812816,0.04562703,158.28,158.25,6.3153]
[1748910813022,0.04562703,158.28,158.24,0.04201572]
[1748910813323,0.04562703,158.28,158.26,6.3149]
[1748910813619,0.04562703,158.28,158.24,0.04201572]
[1748910814216,0.04562703,158.28,158.25,6.3153]
[1748910814421,0.04562703,158.28,158.24,0.04201572]
[1748910815515,0.04562703,158.28,158.27,6.3146]
[1748910815716,0.04562703,158.28,158.24,0.04201572]
[1748910816122,0.04562703,158.28,158.25,6.3153]
[1748910816817,6.35992703,158.28,158.25,6.3153]
[1748910817021,0.04562703,158.28,158.24,0.04201572]
[1748910818019,0.04562703,158.28,158.27,6.3146]
[1748910820329,0.04562703,158.28,158.24,0.04201572]
[1748910821021,131.4382,158.35,158.24,0.04201572]
[1748910821022,581.5,158.38,158.27,10.91361528]
[1748910821223,581.5,158.38,158.29,10.91361528]
[1748910821224,6.3113,158.36,158.29,10.91361528]
[1748910821724,12.92531528,158.37,158.28,4.2508]
[1748910821923,12.92531528,158.37,158.3,6.3131]
[1748910822123,0.0440097,158.35,158.32,0.04213133]
[1748910822323,6.3121,158.34,158.32,0.04213133]
[1748910823025,6.3556097,158.35,158.32,0.04213133]
[1748910823729,6.3119,158.34,158.32,0.04213133]
[1748910823934,0.0440097,158.35,158.32,0.04213133]
[1748910824227,0.0440097,158.35,158.33,6.3122]
[1748910824820,0.0440097,158.35,158.34,6.3118]
[1748910828829,0.0440097,158.35,158.33,6.3122]
[1748910829133,5.11510056,158.34,158.32,0.04213133]
[1748910829328,0.0440097,158.35,158.32,0.04213133]
[1748910829825,5.11516991,158.34,158.32,0.04213133]
[1748910830033,6.3555097,158.35,158.32,0.04213133]
[1748910830226,5.12045005,158.34,158.32,0.04213133]
[1748910830427,5.12045005,158.33,158.32,0.04213133]
[1748910830629,11.43265005,158.33,158.32,0.04213133]
[1748910830824,5.12045005,158.33,158.32,0.04213133]
[1748910831632,11.43265005,158.33,158.32,0.04213133]
[1748910831829,5.12045005,158.33,158.32,0.04213133]
[1748910833128,0.0440097,158.35,158.32,0.04213133]
[1748910833334,5.12945475,158.34,158.32,0.04213133]
[1748910833529,5.12945475,158.33,158.32,0.04213133]
[1748910834136,5.12945475,158.33,158.32,6.35473133]
[1748910836639,0.0440097,158.35,158.32,0.04213133]
[1748910836834,5.06650141,158.34,158.32,0.04213133]
[1748910837041,5.06650141,158.33,158.32,0.04213133]
[1748910837541,5.06650141,158.33,158.32,6.35463133]
[1748910838641,0.0440097,158.35,158.32,0.04213133]
[1748910838937,5.06701934,158.34,158.32,0.04213133]
[1748910839137,0.0440097,158.35,158.32,0.04213133]
[1748910839334,5.06722835,158.34,158.32,0.04213133]
[1748910839539,0.0440097,158.35,158.32,0.04213133]
[1748910839739,5.06163836,158.34,158.32,0.04213133]
[1748910840138,5.06163836,158.34,158.33,6.3122]
[1748910840441,0.0440097,158.35,158.32,0.04213133]
[1748910840640,0.0440097,158.35,158.34,6.3118]
[1748910842438,9.7e-06,158.35,158.34,6.3118]
[1748910842634,9.7e-06,158.35,158.34,17.22541528]
[1748910843444,9.7e-06,158.35,158.34,6.3118]
[1748910845344,9.7e-06,158.35,158.34,53.02541528]
[1748910845549,5.88513955,158.44,158.34,53.03361528]
[1748910845849,5.88513955,158.45,158.4,10.91361528]
[1748910846053,5.88513955,158.45,158.44,6.3079]
[1748910846347,35.8,158.48,158.4,46.71361528]
[1748910846543,35.8,158.48,158.42,0.04116525]
[1748910846750,12.45243955,158.52,158.44,10.91361528]
[1748910847041,41.68513955,158.53,158.47,6.3065]
[1748910847245,545.36,158.54,158.46,0.04601835]
[1748910847446,10.91361528,158.53,158.46,0.04601835]
[1748910848148,545.36,158.54,158.46,0.04601835]
[1748910849045,6.3051,158.52,158.48,6.3063]
[1748910849342,545.36,158.54,158.48,6.34803429]
[1748910849650,545.36,158.54,158.48,0.04173429]
[1748910849951,10.91361528,158.53,158.48,0.04173429]
[1748910850248,556.27361528,158.54,158.48,0.04173429]
[1748910851344,6.3044,158.53,158.49,6.3056]
[1748910851547,556.27361528,158.54,158.48,0.04173429]
[1748910852555,10.91361528,158.52,158.48,0.04173429]
[1748910852955,6.3056,158.5,158.48,0.04173429]
[1748910853342,10.91361528,158.52,158.48,0.04173429]
[1748910853343,6.3059,158.49,158.48,0.04173429]
[1748910854651,46.69361528,158.5,158.29,20.31320238]
[1748910854852,6.3074,158.46,158.39,46.69361528]
[1748910855150,35.78,158.49,158.39,46.69361528]
[1748910855344,35.78,158.49,158.41,12.96851528]
[1748910855547,35.78,158.49,158.44,6.3076]
[1748910855746,35.78,158.49,158.41,12.96851528]
[1748910855747,0.04604113,158.48,158.45,0.04818676]
[1748910856252,10.95965641,158.48,158.45,0.04818676]
[1748910856451,6.3071,158.46,158.45,0.04818676]
[1748910859960,6.3068,158.47,158.45,0.04818676]
[1748910860162,10.95965641,158.48,158.45,0.04818676]
[1748910860857,6.3071,158.46,158.45,0.04818676]
[1748910861862,0.04604113,158.48,158.45,0.04818676]
[1748910862269,0.04604113,158.48,158.47,6.3067]
[1748910863753,4.113e-05,158.48,158.47,6.3067]
[1748910864464,4.113e-05,158.48,158.47,58.94031528]
[1748910864672,10.91361528,158.58,158.55,6.3033]
[1748910864967,10.91361528,158.58,158.49,10.91361528]
[1748910865167,35.4,158.59,158.49,10.91361528]
[1748910865357,580.42,158.62,158.51,10.91361528]
[1748910865556,4.2088,158.63,158.55,10.95897419]
[1748910865962,10.5092,158.63,158.55,10.95897419]
[1748910866170,2.1109,158.67,158.55,0.04535891]
[1748910866370,46.31361528,158.66,158.59,0.04669477]
[1748910866665,46.31361528,158.66,158.6,6.3014]
[1748910866861,46.31361528,158.66,158.59,0.04669477]
[1748910867259,6.3009,158.62,158.59,0.04669477]
[1748910867858,46.31361528,158.66,158.59,0.04669477]
[1748910868877,35.4,158.66,158.59,0.04669477]
[1748910869360,6.3004,158.63,158.59,6.34829477]
[1748910869761,35.4,158.66,158.59,6.34829477]
[1748910869966,6.3,158.64,158.6,6.3014]
[1748910870160,35.4,158.66,158.59,0.04669477]
[1748910870880,6.3002,158.64,158.6,6.3014]
[1748910871673,6.2996,158.65,158.61,6.3011]
[1748910872671,6.3,158.64,158.6,6.3014]
[1748910873274,35.4,158.66,158.59,10.96031005]
[1748910873570,39.5377,158.69,158.59,10.96031005]
[1748910873771,45.8357,158.69,158.63,6.3]
[1748910873970,45.8357,158.69,158.62,0.04453076]
[1748910874279,45.8357,158.69,158.64,6.2999]
[1748910874773,45.8357,158.69,158.62,0.04453076]
[1748910874774,6.2985,158.68,158.63,6.3002]
[1748910874973,39.5377,158.69,158.62,0.04453076]
[1748910875362,2.01,158.72,158.63,10.91361528]
[1748910875566,6.2966,158.73,158.66,0.04812946]
[1748910875865,2.0769,158.77,158.73,6.296]
[1748910876065,2.0769,158.77,158.73,0.0397671]
[1748910876461,35.38,158.78,158.73,0.0397671]
[1748910876666,544.56,158.79,158.73,0.0397671]
[1748910877072,6.295,158.77,158.73,0.0397671]
[1748910877268,579.94,158.79,158.73,0.0397671]
[1748910877471,586.2343,158.79,158.73,6.3360671]
[1748910877669,579.94,158.79,158.73,0.0397671]
[1748910878565,35.38,158.79,158.73,0.0397671]
[1748910879974,6.296,158.74,158.73,0.0397671]
[1748910880682,46.29361528,158.79,158.73,0.0397671]
[1748910881172,10.91361528,158.77,158.67,2.043]
[1748910881380,0.04535102,158.78,158.68,10.91361528]
[1748910881381,10.91361528,158.78,158.68,10.91361528]
[1748910881575,6.2951,158.77,158.73,6.296]
[1748910881775,35.38,158.79,158.73,6.296]
[1748910881985,35.38,158.79,158.7,10.91361528]
[1748910882281,0.04444295,158.76,158.73,0.04651704]
[1748910883272,0.04444295,158.76,158.73,6.34281704]
[1748910883674,0.04444295,158.76,158.73,0.04651704]
[1748910883869,6.33984295,158.76,158.73,0.04651704]
[1748910884182,0.04444295,158.76,158.73,0.04651704]
[1748910884379,6.2958,158.75,158.73,0.04651704]
[1748910884577,0.04444295,158.76,158.73,0.04651704]
[1748910885469,6.2958,158.75,158.73,0.04651704]
[1748910885978,6.296,158.74,158.73,0.04651704]
[1748910886180,6.296,158.74,158.66,35.36]
[1748910886181,10.91361528,158.74,158.66,35.36]
[1748910886570,6.2971,158.72,158.68,6.2983]
[1748910887180,6.34377345,158.72,158.69,6.298]
[1748910887387,0.04667345,158.72,158.69,6.298]
[1748910888083,0.04667345,158.72,158.7,6.2976]
[1748910888380,0.04667345,158.72,158.68,0.04708267]
[1748910888581,6.34357345,158.72,158.68,6.34528267]
[1748910889583,6.34357345,158.72,158.68,0.04708267]
[1748910889584,0.04667345,158.72,158.68,0.04708267]
[1748910889982,0.04667345,158.72,158.71,6.2972]
[1748910891285,35.36,158.78,158.69,10.91361528]
[1748910891680,41.6547,158.78,158.69,10.91361528]
[1748910891880,41.6547,158.78,158.74,6.2959]
[1748910892281,41.69878785,158.78,158.74,0.04368619]
[1748910892484,35.40408785,158.78,158.75,6.2953]
[1748910892893,35.40408785,158.78,158.74,0.04368619]
[1748910893078,41.69878785,158.78,158.74,0.04368619]
[1748910893479,41.69878785,158.78,158.74,6.33938619]
[1748910893686,41.69878785,158.78,158.74,0.04368619]
[1748910893881,35.40408785,158.78,158.74,0.04368619]
[1748910894590,35.40408785,158.78,158.74,6.33938619]
[1748910894789,35.40408785,158.78,158.74,0.04368619]
[1748910895591,41.69868785,158.78,158.74,0.04368619]
[1748910895886,6.2955,158.76,158.74,0.04368619]
[1748910896083,10.91361528,158.77,158.67,46.23361528]
[1748910896287,10.91361528,158.77,158.72,6.2967]
[1748910896488,6.296,158.74,158.67,46.23361528]
[1748910897193,0.04849049,158.72,158.69,0.04031694]
[1748910897693,0.04849049,158.72,158.71,6.2972]
[1748910898399,0.04849049,158.72,158.7,6.2975]
[1748910898581,0.04849049,158.72,158.69,0.04031694]
[1748910898985,6.2976,158.7,158.69,0.04031694]
[1748910899591,6.2976,158.7,158.63,35.32]
[1748910899592,6.2984,158.68,158.63,35.32]
[1748910899790,6.2984,158.68,158.62,4.2694]
[1748910900094,6.2988,158.67,158.64,6.2997]
[1748910900397,46.23361528,158.7,158.6,261.25661154]
[1748910900589,0.04555378,158.67,158.64,0.04164587]
[1748910900790,0.04555378,158.67,158.64,10.95526115]
[1748910901191,35.32,158.72,158.64,10.95526115]
[1748910901391,35.32,158.72,158.64,46.27526115]
[1748910901598,35.32,158.75,158.66,10.91361528]
[1748910901791,35.32,158.75,158.68,10.91361528]
[1748910902192,35.32,158.75,158.74,6.296]
[1748910902596,0.04291297,158.76,158.74,6.296]
[1748910902995,0.04291297,158.76,158.73,6.341849]
[1748910903304,0.04291297,158.76,158.73,0.045649]
[1748910903494,0.04291297,158.76,158.74,6.296]
[1748910903792,0.04291297,158.76,158.73,0.045649]
[1748910904190,6.33821297,158.76,158.73,0.045649]
[1748910904695,10.91361528,158.74,158.73,0.045649]
[1748910904897,10.91361528,158.74,158.66,35.32]
[1748910904898,46.23361528,158.74,158.66,35.32]
[1748910905592,6.2963,158.74,158.7,6.2975]
[1748910905795,0.04136389,158.74,158.7,0.04707745]
[1748910907697,6.33776389,158.74,158.7,6.34437745]
[1748910907901,0.04136389,158.74,158.7,0.04707745]
[1748910908199,0.04136389,158.74,158.71,6.2968]
[1748910908797,0.04136389,158.74,158.72,6.2967]
[1748910910001,0.04136389,158.74,158.71,6.2971]
[1748910910698,0.04136389,158.74,158.72,6.2967]
[1748910910897,0.04136389,158.74,158.7,0.04707745]
[1748910911096,6.389e-05,158.74,158.73,6.2964]
[1748910913099,5.85407233,158.83,158.73,17.21361528]
[1748910913395,6.2926,158.83,158.75,10.91361528]
[1748910913991,0.04762718,158.81,158.77,0.04805539]
[1748910914896,0.04762718,158.81,158.8,6.2936]
[1748910915799,0.04762718,158.81,158.77,0.04805539]
[1748910916197,35.36762718,158.81,158.77,0.04805539]
[1748910916502,35.36762718,158.81,158.77,10.96167067]
[1748910917092,35.36762718,158.81,158.78,6.2943]
[1748910917308,35.36762718,158.81,158.77,0.04805539]
[1748910917509,35.36762718,158.81,158.79,6.2937]
[1748910918398,35.36762718,158.81,158.78,6.2943]
[1748910918599,35.36762718,158.81,158.77,0.04805539]
[1748910918903,41.66092718,158.81,158.77,0.04805539]
[1748910919204,41.66092718,158.81,158.77,6.34275539]
[1748910919598,41.66092718,158.81,158.77,0.04805539]
[1748910919897,35.36762718,158.81,158.77,0.04805539]
[1748910920102,17.45171528,158.8,158.67,37.3791]
[1748910920298,6.2952,158.76,158.72,6.2965]
[1748910920597,6.2952,158.76,158.67,2.0591]
[1748910920598,35.32,158.75,158.67,12.97271528]
[1748910920798,6.2969,158.72,158.68,6.2982]
[1748910921002,0.04829554,158.72,158.68,0.04111799]
[1748910921498,10.96191082,158.72,158.68,0.04111799]
[1748910922093,6.2976,158.7,158.68,0.04111799]
[1748910922498,10.96191082,158.72,158.68,0.04111799]
[1748910922798,10.91361528,158.7,158.6,250.30299626]
[1748910922995,10.91361528,158.68,158.6,215.02299626]
[1748910923193,6.2991,158.67,158.63,6.3003]
[1748910923401,6.2991,158.67,158.6,215.02299626]
[1748910923402,35.28,158.69,158.6,215.02299626]
[1748910923596,6.3003,158.64,158.59,6.3019]
[1748910923906,0.04664671,158.63,158.6,0.04400709]
[1748910924305,0.04664671,158.63,158.62,6.3007]
[1748910925495,0.04664671,158.63,158.61,6.3011]
[1748910925898,0.04664671,158.63,158.6,0.04400709]
[1748910926100,0.04664671,158.63,158.62,6.3007]
[1748910926499,35.3,158.66,158.6,0.04400709]
[1748910926908,35.3,158.66,158.63,6.3001]
[1748910927508,35.34041357,158.66,158.63,6.3001]
[1748910927908,35.34041357,158.66,158.64,6.2999]